[Event "*** Titled Tuesday Blitz"]
[Site "Chess.com"]
[Date "2019.04.02"]
[Round "2"]
[White "Superfelix"]
[Black "Dixit_Nikhil"]
[Result "1-0"]
[WhiteElo "2438"]
[BlackElo "2487"]
[TimeControl "180+2"]
[EndTime "14:23:35 PDT"]
[Termination "Superfelix won by resignation"]

1. e4 {[%clk 0:03:01.9]} 1... g6 {[%clk 0:02:59.8]} 2. d4 {[%clk 0:03:02.5]}
2... Bg7 {[%clk 0:03:01.4]} 3. Nf3 {[%clk 0:03:03]} 3... d6 {[%clk 0:03:02.3]}
4. Bc4 {[%clk 0:03:04.4]} 4... Nf6 {[%clk 0:03:02.7]} 5. Qe2 {[%clk 0:03:05.3]}
5... O-O {[%clk 0:03:03.4]} 6. O-O {[%clk 0:03:05.9]} 6... Bg4 {[%clk
0:03:02.2]} 7. c3 {[%clk 0:03:05.7]} 7... Nc6 {[%clk 0:03:00.4]} 8. h3 {[%clk
0:03:05]} 8... Bxf3 {[%clk 0:03:00.6]} 9. Qxf3 {[%clk 0:03:06.9]} 9... e5 {[%clk
0:03:02.3]} 10. dxe5 {[%clk 0:02:59.5]} 10... Nxe5 {[%clk 0:03:02.7]} 11. Qe2
{[%clk 0:03:00.3]} 11... Nxc4 {[%clk 0:03:03.2]} 12. Qxc4 {[%clk 0:03:02.2]}
12... Re8 {[%clk 0:02:59.1]} 13. Bg5 {[%clk 0:03:02.5]} 13... h6 {[%clk
0:02:33.7]} 14. Bxf6 {[%clk 0:03:01.7]} 14... Qxf6 {[%clk 0:02:35.6]} 15. Nd2
{[%clk 0:02:54.5]} 15... c6 {[%clk 0:02:27.9]} 16. Rae1 {[%clk 0:02:55]} 16...
Qf4 {[%clk 0:02:22.5]} 17. Re3 {[%clk 0:02:45.2]} 17... d5 {[%clk 0:02:14.9]}
18. Qe2 {[%clk 0:02:26.3]} 18... dxe4 {[%clk 0:02:11.8]} 19. Nxe4 {[%clk
0:02:22.2]} 19... Re6 {[%clk 0:02:06.2]} 20. Re1 {[%clk 0:02:21.7]} 20... Rae8
{[%clk 0:02:04.8]} 21. Nc5 {[%clk 0:02:15.6]} 21... Rxe3 {[%clk 0:02:03.4]} 22.
fxe3 {[%clk 0:02:16.5]} 22... Qc7 {[%clk 0:01:56.5]} 23. Rd1 {[%clk 0:02:11.8]}
23... b6 {[%clk 0:01:55.9]} 24. Nd3 {[%clk 0:02:03.4]} 24... c5 {[%clk
0:01:53.2]} 25. Qf3 {[%clk 0:01:59.3]} 25... Rd8 {[%clk 0:01:49.9]} 26. Nf4
{[%clk 0:01:58.1]} 26... Rxd1+ {[%clk 0:01:48]} 27. Qxd1 {[%clk 0:02:00]} 27...
Qe5 {[%clk 0:01:42.8]} 28. Qd3 {[%clk 0:01:54.3]} 28... c4 {[%clk 0:01:37]} 29.
Qd4 {[%clk 0:01:43.2]} 29... Qe7 {[%clk 0:01:23]} 30. Nd5 {[%clk 0:01:36.3]}
30... Qg5 {[%clk 0:01:07.4]} 31. Qxc4 {[%clk 0:01:35.3]} 31... Qg3 {[%clk
0:01:04.9]} 32. Qc8+ {[%clk 0:01:25.2]} 32... Kh7 {[%clk 0:01:04]} 33. Qe8
{[%clk 0:01:26.4]} 33... Qe1+ {[%clk 0:00:51.8]} 34. Kh2 {[%clk 0:01:25.8]}
34... Qf2 {[%clk 0:00:53.2]} 35. a4 {[%clk 0:01:11.9]} 35... h5 {[%clk
0:00:50.3]} 36. Qe7 {[%clk 0:00:54.1]} 36... h4 {[%clk 0:00:46.3]} 37. Qd6
{[%clk 0:00:49.6]} 37... f5 {[%clk 0:00:42.3]} 38. Qf4 {[%clk 0:00:44.1]} 38...
Qe1 {[%clk 0:00:40]} 39. Ne7 {[%clk 0:00:37.3]} 39... Bf6 {[%clk 0:00:33.2]} 40.
Nd5 {[%clk 0:00:31.1]} 40... Bd8 {[%clk 0:00:23.8]} 41. Qd6 {[%clk 0:00:29]}
41... Bg5 {[%clk 0:00:24.8]} 42. Qe5 {[%clk 0:00:22.2]} 42... Qf2 {[%clk
0:00:19.4]} 43. c4 {[%clk 0:00:21.3]} 43... f4 {[%clk 0:00:18.9]} 44. Qxg5
{[%clk 0:00:18.2]} 44... f3 {[%clk 0:00:18.4]} 45. Nf4 {[%clk 0:00:16.4]} 45...
Qxe3 {[%clk 0:00:16.2]} 46. Qxg6+ {[%clk 0:00:16.5]} 46... Kh8 {[%clk
0:00:17.8]} 47. Qh5+ {[%clk 0:00:16.5]} 47... Kg8 {[%clk 0:00:18.5]} 48. Qxf3
{[%clk 0:00:17.9]} 48... Qd4 {[%clk 0:00:19]} 49. Qg4+ {[%clk 0:00:18.8]} 49...
Kf7 {[%clk 0:00:19.8]} 50. Qf5+ {[%clk 0:00:19.4]} 50... Ke7 {[%clk 0:00:21.2]}
51. Ng6+ {[%clk 0:00:20.6]} 51... Kd8 {[%clk 0:00:22.4]} 52. Qd5+ {[%clk
0:00:20.9]} 52... Qxd5 {[%clk 0:00:23.9]} 53. cxd5 {[%clk 0:00:22.8]} 1-0

[Event "*** Titled Tuesday Blitz"]
[Site "Chess.com"]
[Date "2019.04.02"]
[Round "2"]
[White "Dedic8"]
[Black "2165149677570"]
[Result "1-0"]
[WhiteElo "2706"]
[BlackElo "2357"]
[TimeControl "180+2"]
[EndTime "14:23:36 PDT"]
[Termination "Dedic8 won by resignation"]

1. e4 {[%clk 0:03:01.9]} 1... c5 {[%clk 0:03:00.8]} 2. Nf3 {[%clk 0:03:02.9]}
2... d6 {[%clk 0:03:02.4]} 3. d4 {[%clk 0:03:04.3]} 3... cxd4 {[%clk 0:03:04.3]}
4. Nxd4 {[%clk 0:03:06.2]} 4... Nf6 {[%clk 0:03:05.8]} 5. Nc3 {[%clk 0:03:07.9]}
5... a6 {[%clk 0:03:07.4]} 6. f3 {[%clk 0:03:09.6]} 6... e5 {[%clk 0:03:05.3]}
7. Nb3 {[%clk 0:03:10.7]} 7... Be6 {[%clk 0:03:03.9]} 8. Be3 {[%clk 0:03:12.2]}
8... Be7 {[%clk 0:03:05.5]} 9. Qd2 {[%clk 0:03:13.8]} 9... O-O {[%clk 0:03:07]}
10. O-O-O {[%clk 0:03:15.5]} 10... Nbd7 {[%clk 0:03:08.3]} 11. g4 {[%clk
0:03:16.9]} 11... b5 {[%clk 0:03:09.9]} 12. Rg1 {[%clk 0:03:18.4]} 12... b4
{[%clk 0:03:10.8]} 13. Nd5 {[%clk 0:03:19.5]} 13... Bxd5 {[%clk 0:03:10.8]} 14.
exd5 {[%clk 0:03:21.4]} 14... Nb6 {[%clk 0:03:12.4]} 15. Na5 {[%clk 0:03:22.9]}
15... Nfxd5 {[%clk 0:03:07.5]} 16. Nc6 {[%clk 0:03:18.1]} 16... Qc7 {[%clk
0:03:07.7]} 17. Nxe7+ {[%clk 0:03:17.4]} 17... Qxe7 {[%clk 0:03:04.5]} 18. Bxb6
{[%clk 0:03:17.7]} 18... Nxb6 {[%clk 0:03:06.4]} 19. Qxd6 {[%clk 0:03:19]} 19...
Qg5+ {[%clk 0:03:02.8]} 20. Qd2 {[%clk 0:03:19.8]} 20... Qxd2+ {[%clk
0:03:00.6]} 21. Rxd2 {[%clk 0:03:20.8]} 21... a5 {[%clk 0:02:55.4]} 22. Bb5
{[%clk 0:03:15.3]} 22... Rfc8 {[%clk 0:02:42.8]} 23. Rgd1 {[%clk 0:02:35]} 23...
g6 {[%clk 0:02:25.8]} 24. Rd6 {[%clk 0:02:00.1]} 24... Nc4 {[%clk 0:02:18.4]}
25. Bxc4 {[%clk 0:01:20]} 25... Rxc4 {[%clk 0:02:18.9]} 26. Rd8+ {[%clk
0:01:21.9]} 26... Rxd8 {[%clk 0:02:19.1]} 27. Rxd8+ {[%clk 0:01:23.8]} 27... Kg7
{[%clk 0:02:20.6]} 28. Rd5 {[%clk 0:01:25.7]} 28... e4 {[%clk 0:02:13.8]} 29. b3
{[%clk 0:01:16.4]} 29... Rc3 {[%clk 0:01:52]} 30. fxe4 {[%clk 0:01:17]} 30...
Rh3 {[%clk 0:01:38.7]} 31. Rxa5 {[%clk 0:01:01.3]} 31... Rxh2 {[%clk 0:01:39.8]}
32. Rb5 {[%clk 0:01:01.5]} 32... Rg2 {[%clk 0:01:40.1]} 33. g5 {[%clk
0:01:02.8]} 33... Rg4 {[%clk 0:01:36.7]} 34. c3 {[%clk 0:00:46.1]} 34... bxc3
{[%clk 0:01:32.1]} 35. a4 {[%clk 0:00:47.3]} 35... Rxe4 {[%clk 0:01:32.8]} 36.
a5 {[%clk 0:00:47.5]} 36... Re7 {[%clk 0:01:24.8]} 37. a6 {[%clk 0:00:47.9]}
37... Ra7 {[%clk 0:01:23.3]} 38. Ra5 {[%clk 0:00:48.2]} 38... f5 {[%clk
0:01:08.9]} 39. b4 {[%clk 0:00:31.9]} 39... f4 {[%clk 0:01:08.3]} 40. b5 {[%clk
0:00:33]} 40... f3 {[%clk 0:01:08.7]} 41. Kc2 {[%clk 0:00:34.6]} 41... f2 {[%clk
0:00:44.5]} 42. Ra1 {[%clk 0:00:35.2]} 42... Kf7 {[%clk 0:00:44.2]} 43. Rf1
{[%clk 0:00:34]} 43... Ke6 {[%clk 0:00:43.9]} 44. Kxc3 {[%clk 0:00:34.5]} 44...
Kd5 {[%clk 0:00:44.9]} 45. Kb4 {[%clk 0:00:35.2]} 45... Rf7 {[%clk 0:00:43.1]}
46. Rd1+ {[%clk 0:00:21.4]} 46... Ke4 {[%clk 0:00:41.9]} 47. b6 {[%clk
0:00:19.9]} 47... Kf3 {[%clk 0:00:11.9]} 48. a7 {[%clk 0:00:20.4]} 48... Ke2
{[%clk 0:00:09.5]} 49. Ra1 {[%clk 0:00:18.8]} 49... Rf4+ {[%clk 0:00:08]} 50.
Kb5 {[%clk 0:00:19.1]} 50... Rf8 {[%clk 0:00:09.3]} 51. b7 {[%clk 0:00:19.8]}
51... Rf5+ {[%clk 0:00:10.2]} 52. Kc6 {[%clk 0:00:20.5]} 1-0

[Event "*** Titled Tuesday Blitz"]
[Site "Chess.com"]
[Date "2019.04.02"]
[Round "2"]
[White "IIIlllII1llIl"]
[Black "DrVitman"]
[Result "1/2-1/2"]
[WhiteElo "2798"]
[BlackElo "2637"]
[TimeControl "180+2"]
[EndTime "14:23:42 PDT"]
[Termination "Game drawn by repetition"]

1. e4 {[%clk 0:03:01.9]} 1... c5 {[%clk 0:02:59.4]} 2. c3 {[%clk 0:03:02.6]}
2... d5 {[%clk 0:02:59.1]} 3. exd5 {[%clk 0:03:04.5]} 3... Qxd5 {[%clk
0:03:00.2]} 4. d4 {[%clk 0:03:05.8]} 4... Nf6 {[%clk 0:02:59.3]} 5. Nf3 {[%clk
0:03:06.6]} 5... Bd7 {[%clk 0:02:57.9]} 6. Be2 {[%clk 0:02:59]} 6... e6 {[%clk
0:02:56.8]} 7. O-O {[%clk 0:02:57.9]} 7... cxd4 {[%clk 0:02:50.2]} 8. cxd4
{[%clk 0:02:58.1]} 8... Bb4 {[%clk 0:02:44.8]} 9. Nc3 {[%clk 0:02:47.2]} 9...
Bxc3 {[%clk 0:02:44.9]} 10. bxc3 {[%clk 0:02:49.1]} 10... O-O {[%clk 0:02:04.9]}
11. Ne5 {[%clk 0:02:49.2]} 11... Qa5 {[%clk 0:02:01.1]} 12. Qb3 {[%clk
0:02:27.5]} 12... Qc7 {[%clk 0:01:41.7]} 13. Bf4 {[%clk 0:02:06.3]} 13... Qc8
{[%clk 0:01:37.7]} 14. Bf3 {[%clk 0:01:56.3]} 14... Nc6 {[%clk 0:01:38.1]} 15.
Nc4 {[%clk 0:01:45.1]} 15... b6 {[%clk 0:01:29.6]} 16. Bg3 {[%clk 0:01:31.9]}
16... Qa6 {[%clk 0:01:23.1]} 17. Rfd1 {[%clk 0:00:36.9]} 17... Rac8 {[%clk
0:00:59.4]} 18. Nd6 {[%clk 0:00:33.3]} 18... Rcd8 {[%clk 0:00:58.3]} 19. Qb2
{[%clk 0:00:28.4]} 19... Qa4 {[%clk 0:00:23.7]} 20. Bh4 {[%clk 0:00:16.3]} 20...
Ne7 {[%clk 0:00:15.8]} 21. Qd2 {[%clk 0:00:12.7]} 21... Bc6 {[%clk 0:00:15.5]}
22. Bxf6 {[%clk 0:00:11.7]} 22... gxf6 {[%clk 0:00:13.6]} 23. Ne4 {[%clk
0:00:11.9]} 23... Bxe4 {[%clk 0:00:14.1]} 24. Bxe4 {[%clk 0:00:13.8]} 24... f5
{[%clk 0:00:15.2]} 25. Bd3 {[%clk 0:00:14.8]} 25... Qc6 {[%clk 0:00:13.3]} 26.
h4 {[%clk 0:00:15.2]} 26... Kh8 {[%clk 0:00:13.7]} 27. Qh6 {[%clk 0:00:13]}
27... Ng8 {[%clk 0:00:14.4]} 28. Qf4 {[%clk 0:00:09.8]} 28... Qd6 {[%clk
0:00:12.6]} 29. Qe3 {[%clk 0:00:08.7]} 29... Nf6 {[%clk 0:00:11.8]} 30. Be2
{[%clk 0:00:09.1]} 30... Rg8 {[%clk 0:00:12.1]} 31. c4 {[%clk 0:00:07.9]} 31...
Ng4 {[%clk 0:00:10.1]} 32. Bxg4 {[%clk 0:00:05.3]} 32... Rxg4 {[%clk 0:00:12]}
33. g3 {[%clk 0:00:05.6]} 33... Rxd4 {[%clk 0:00:10.4]} 34. Rxd4 {[%clk
0:00:04.2]} 34... Qxd4 {[%clk 0:00:12.3]} 35. Qe1 {[%clk 0:00:05.9]} 35... Kg7
{[%clk 0:00:12.5]} 36. Rc1 {[%clk 0:00:06.2]} 36... Kf6 {[%clk 0:00:12.9]} 37.
Kg2 {[%clk 0:00:03.9]} 37... Qe4+ {[%clk 0:00:12.7]} 38. Qxe4 {[%clk 0:00:05]}
38... fxe4 {[%clk 0:00:14.6]} 39. c5 {[%clk 0:00:06.6]} 39... Rc8 {[%clk
0:00:12.3]} 40. c6 {[%clk 0:00:04.3]} 40... Ke7 {[%clk 0:00:11.4]} 41. g4 {[%clk
0:00:04]} 41... Kd6 {[%clk 0:00:10.6]} 42. Rd1+ {[%clk 0:00:03.6]} 42... Kxc6
{[%clk 0:00:10.5]} 43. Kg3 {[%clk 0:00:04.4]} 43... e5 {[%clk 0:00:10.2]} 44. g5
{[%clk 0:00:04.6]} 44... a5 {[%clk 0:00:06.3]} 45. Kg4 {[%clk 0:00:05.4]} 45...
Kb5 {[%clk 0:00:06.5]} 46. Rd7 {[%clk 0:00:05.3]} 46... Rf8 {[%clk 0:00:07.1]}
47. Rb7 {[%clk 0:00:04.8]} 47... Kc6 {[%clk 0:00:07.5]} 48. Re7 {[%clk
0:00:05.6]} 48... Kd6 {[%clk 0:00:08.6]} 49. Rb7 {[%clk 0:00:06.6]} 49... Kc6
{[%clk 0:00:08.4]} 50. Re7 {[%clk 0:00:07.6]} 50... Kd6 {[%clk 0:00:08.5]} 51.
Rb7 {[%clk 0:00:08.3]} 51... Kc6 {[%clk 0:00:08.5]} 52. Re7 {[%clk 0:00:07.9]}
1/2-1/2

[Event "*** Titled Tuesday Blitz"]
[Site "Chess.com"]
[Date "2019.04.02"]
[Round "2"]
[White "1995Tiger"]
[Black "indfraeng"]
[Result "1-0"]
[WhiteElo "2032"]
[BlackElo "1967"]
[TimeControl "180+2"]
[EndTime "14:23:42 PDT"]
[Termination "1995Tiger won by checkmate"]

1. e4 {[%clk 0:03:01.9]} 1... e5 {[%clk 0:02:53.3]} 2. Nf3 {[%clk 0:03:02.4]}
2... Nc6 {[%clk 0:02:53.1]} 3. Bb5 {[%clk 0:03:02.8]} 3... a6 {[%clk 0:02:53.1]}
4. Ba4 {[%clk 0:03:03.6]} 4... Nf6 {[%clk 0:02:54.1]} 5. d3 {[%clk 0:03:04.8]}
5... b5 {[%clk 0:02:53.4]} 6. Bb3 {[%clk 0:03:05.6]} 6... Be7 {[%clk 0:02:54.5]}
7. O-O {[%clk 0:03:05.5]} 7... d6 {[%clk 0:02:55.4]} 8. c3 {[%clk 0:03:06.3]}
8... O-O {[%clk 0:02:55.4]} 9. Re1 {[%clk 0:03:07.2]} 9... Nb8 {[%clk
0:02:55.3]} 10. Nbd2 {[%clk 0:03:07.8]} 10... Nbd7 {[%clk 0:02:56.2]} 11. Nf1
{[%clk 0:03:08.1]} 11... Nc5 {[%clk 0:02:55.6]} 12. Bc2 {[%clk 0:03:07.8]} 12...
Re8 {[%clk 0:02:52.6]} 13. d4 {[%clk 0:03:08.7]} 13... Ncd7 {[%clk 0:02:46.9]}
14. Ng3 {[%clk 0:03:09.5]} 14... Bf8 {[%clk 0:02:46.4]} 15. a4 {[%clk 0:03:07]}
15... Bb7 {[%clk 0:02:44.6]} 16. Bd3 {[%clk 0:02:53.2]} 16... c6 {[%clk
0:02:43.2]} 17. b3 {[%clk 0:02:51]} 17... g6 {[%clk 0:02:42.3]} 18. Qc2 {[%clk
0:02:37]} 18... Bg7 {[%clk 0:02:40.5]} 19. h3 {[%clk 0:02:37.8]} 19... Nf8
{[%clk 0:02:21.9]} 20. Bb2 {[%clk 0:02:35.1]} 20... Ne6 {[%clk 0:02:21.3]} 21.
Rad1 {[%clk 0:02:34.2]} 21... Nf4 {[%clk 0:02:21.1]} 22. Bf1 {[%clk 0:02:35]}
22... Qc7 {[%clk 0:02:20.2]} 23. dxe5 {[%clk 0:02:25.9]} 23... dxe5 {[%clk
0:02:19.8]} 24. c4 {[%clk 0:02:27.5]} 24... bxa4 {[%clk 0:02:11]} 25. bxa4
{[%clk 0:02:27]} 25... Nd7 {[%clk 0:02:10.2]} 26. c5 {[%clk 0:02:24.5]} 26...
Ne6 {[%clk 0:02:02.7]} 27. Ba3 {[%clk 0:02:11.2]} 27... Bf8 {[%clk 0:01:45.3]}
28. Bc4 {[%clk 0:01:43.3]} 28... Ndxc5 {[%clk 0:01:38.8]} 29. Bxc5 {[%clk
0:01:38.2]} 29... Nxc5 {[%clk 0:01:34]} 30. Ng5 {[%clk 0:01:38.1]} 30... Ne6
{[%clk 0:01:28.4]} 31. Nxe6 {[%clk 0:01:32.7]} 31... fxe6 {[%clk 0:01:28.7]} 32.
Qe2 {[%clk 0:01:20.3]} 32... c5 {[%clk 0:01:19.6]} 33. Qg4 {[%clk 0:01:20]}
33... Qc6 {[%clk 0:01:09.3]} 34. h4 {[%clk 0:01:16.1]} 34... Kg7 {[%clk
0:00:28.4]} 35. h5 {[%clk 0:01:09.1]} 35... Rad8 {[%clk 0:00:27.3]} 36. hxg6
{[%clk 0:01:07.6]} 36... hxg6 {[%clk 0:00:27.6]} 37. Nh5+ {[%clk 0:01:03.7]}
37... Kf7 {[%clk 0:00:28.2]} 38. Qf3+ {[%clk 0:00:59.6]} 38... Kg8 {[%clk
0:00:25.4]} 39. Nf6+ {[%clk 0:01:00.7]} 39... Kg7 {[%clk 0:00:26.8]} 40. Nxe8+
{[%clk 0:01:01.7]} 40... Rxe8 {[%clk 0:00:27.8]} 41. Qg3 {[%clk 0:01:01.9]}
41... Bd6 {[%clk 0:00:20]} 42. Rd3 {[%clk 0:01:01.6]} 42... Bc7 {[%clk
0:00:16.4]} 43. Red1 {[%clk 0:00:54.6]} 43... Re7 {[%clk 0:00:15.3]} 44. f3
{[%clk 0:00:45.7]} 44... Qxa4 {[%clk 0:00:13.9]} 45. Bb3 {[%clk 0:00:41]} 45...
Qc6 {[%clk 0:00:12.6]} 46. Bc4 {[%clk 0:00:42.2]} 46... Qa4 {[%clk 0:00:13]} 47.
Bxe6 {[%clk 0:00:23.1]} 47... c4 {[%clk 0:00:08.1]} 48. Rd7 {[%clk 0:00:21.6]}
48... Bb6+ {[%clk 0:00:03.7]} 49. Kh2 {[%clk 0:00:19.9]} 49... Rxd7 {[%clk
0:00:04.7]} 50. Rxd7+ {[%clk 0:00:18.4]} 50... Kf6 {[%clk 0:00:05.9]} 51. Rf7+
{[%clk 0:00:16.9]} 51... Kxe6 {[%clk 0:00:06.8]} 52. Qxg6# {[%clk 0:00:17.9]}
1-0

[Event "*** Titled Tuesday Blitz"]
[Site "Chess.com"]
[Date "2019.04.02"]
[Round "2"]
[White "JSPrepz"]
[Black "Haykos"]
[Result "0-1"]
[WhiteElo "2736"]
[BlackElo "2579"]
[TimeControl "180+2"]
[EndTime "14:23:45 PDT"]
[Termination "Haykos won by resignation"]

1. e4 {[%clk 0:03:01.9]} 1... c5 {[%clk 0:03:01]} 2. Nf3 {[%clk 0:03:00.3]} 2...
e6 {[%clk 0:03:02.1]} 3. c3 {[%clk 0:02:56.4]} 3... d5 {[%clk 0:03:02]} 4. e5
{[%clk 0:02:55.6]} 4... Nc6 {[%clk 0:03:00.5]} 5. d4 {[%clk 0:02:56.8]} 5... Qb6
{[%clk 0:02:59.8]} 6. a3 {[%clk 0:02:58]} 6... Bd7 {[%clk 0:03:00.9]} 7. b4
{[%clk 0:02:58.2]} 7... cxd4 {[%clk 0:03:02.4]} 8. cxd4 {[%clk 0:02:59.3]} 8...
Rc8 {[%clk 0:03:04.1]} 9. Bb2 {[%clk 0:02:57.5]} 9... Na5 {[%clk 0:03:04.8]} 10.
Nc3 {[%clk 0:02:48.9]} 10... Nc4 {[%clk 0:03:04.6]} 11. Bxc4 {[%clk 0:02:48.3]}
11... dxc4 {[%clk 0:03:06.1]} 12. O-O {[%clk 0:02:48.5]} 12... Ne7 {[%clk
0:03:06.8]} 13. Na4 {[%clk 0:02:45.6]} 13... Bxa4 {[%clk 0:03:04.2]} 14. Qxa4+
{[%clk 0:02:46]} 14... Qc6 {[%clk 0:03:04.9]} 15. b5 {[%clk 0:02:35.8]} 15...
Qd5 {[%clk 0:02:03.7]} 16. Rac1 {[%clk 0:02:30.8]} 16... f6 {[%clk 0:01:51.4]}
17. exf6 {[%clk 0:02:30.7]} 17... gxf6 {[%clk 0:01:53.3]} 18. Rfe1 {[%clk
0:02:31.8]} 18... Kf7 {[%clk 0:01:54.3]} 19. Rc3 {[%clk 0:02:19.5]} 19... Rg8
{[%clk 0:01:52.2]} 20. Rce3 {[%clk 0:02:13.4]} 20... Nf5 {[%clk 0:01:50.7]} 21.
Re4 {[%clk 0:02:06.7]} 21... Nd6 {[%clk 0:01:47.7]} 22. Rf4 {[%clk 0:02:01.5]}
22... Bh6 {[%clk 0:01:47.3]} 23. Re5 {[%clk 0:01:27.9]} 23... Bxf4 {[%clk
0:01:36.3]} 24. Rxd5 {[%clk 0:01:29.2]} 24... exd5 {[%clk 0:01:37.8]} 25. g3
{[%clk 0:01:30.9]} 25... c3 {[%clk 0:01:34.3]} 26. Ba1 {[%clk 0:01:17.1]} 26...
c2 {[%clk 0:01:32.4]} 27. Bb2 {[%clk 0:01:18.5]} 27... Rc4 {[%clk 0:00:40]} 28.
Qxa7 {[%clk 0:01:06.4]} 28... c1=Q+ {[%clk 0:00:21.9]} 29. Bxc1 {[%clk
0:01:07.1]} 29... Bxc1 {[%clk 0:00:23]} 30. Qb6 {[%clk 0:01:01.6]} 30... Bxa3
{[%clk 0:00:23.4]} 31. Kg2 {[%clk 0:00:57.9]} 31... Rgc8 {[%clk 0:00:23]} 32.
Qa5 {[%clk 0:00:52]} 32... Bb4 {[%clk 0:00:23.9]} 33. Qa4 {[%clk 0:00:51.1]}
33... b6 {[%clk 0:00:21.1]} 34. Qa7+ {[%clk 0:00:50.8]} 34... R8c7 {[%clk
0:00:22.5]} 35. Qxb6 {[%clk 0:00:52]} 35... Ne4 {[%clk 0:00:22.9]} 36. Nh4
{[%clk 0:00:40.7]} 36... Rc2 {[%clk 0:00:23.2]} 37. Nf5 {[%clk 0:00:41.9]} 37...
Rxf2+ {[%clk 0:00:23.8]} 38. Kh3 {[%clk 0:00:43.5]} 38... Rcc2 {[%clk
0:00:22.9]} 39. Qb7+ {[%clk 0:00:43.1]} 39... Kg6 {[%clk 0:00:24.1]} 40. Nh4+
{[%clk 0:00:42.9]} 40... Kh5 {[%clk 0:00:18.6]} 41. Qf7+ {[%clk 0:00:40.5]}
41... Kh6 {[%clk 0:00:18.9]} 42. Kg4 {[%clk 0:00:40.5]} 42... Ng5 {[%clk
0:00:17.4]} 43. Nf5+ {[%clk 0:00:35.4]} 43... Rxf5 {[%clk 0:00:16.9]} 44. Qh5+
{[%clk 0:00:37.1]} 44... Kg7 {[%clk 0:00:17.8]} 45. Kxf5 {[%clk 0:00:38.5]}
45... Rf2+ {[%clk 0:00:18.9]} 46. Kg4 {[%clk 0:00:39]} 46... Bd2 {[%clk
0:00:18.7]} 47. Qh4 {[%clk 0:00:27]} 47... Kg6 {[%clk 0:00:14.1]} 48. Qh5+
{[%clk 0:00:28.1]} 48... Kg7 {[%clk 0:00:15.6]} 49. Qh4 {[%clk 0:00:25.9]} 49...
Nf3 {[%clk 0:00:12.2]} 50. b6 {[%clk 0:00:18.8]} 50... Nxh4 {[%clk 0:00:11.5]}
51. b7 {[%clk 0:00:20.7]} 51... Bf4 {[%clk 0:00:12.7]} 52. gxf4 {[%clk
0:00:22.1]} 52... Rb2 {[%clk 0:00:13.8]} 53. Kxh4 {[%clk 0:00:22.5]} 53... Rxb7
{[%clk 0:00:15.4]} 54. Kg4 {[%clk 0:00:24.4]} 54... Re7 {[%clk 0:00:16.7]} 55.
Kf5 {[%clk 0:00:26.3]} 55... Re4 {[%clk 0:00:18.2]} 56. h4 {[%clk 0:00:27.5]}
56... Rxd4 {[%clk 0:00:18.8]} 57. h5 {[%clk 0:00:29.4]} 57... h6 {[%clk
0:00:19.6]} 58. Kg4 {[%clk 0:00:30]} 58... Re4 {[%clk 0:00:20.3]} 59. Kf5 {[%clk
0:00:31.9]} 59... Kf7 {[%clk 0:00:21.5]} 60. Kg4 {[%clk 0:00:33.1]} 60... Ke6
{[%clk 0:00:23.1]} 61. Kf3 {[%clk 0:00:35]} 61... f5 {[%clk 0:00:24.6]} 0-1